Cogmind - Beta 14 @@@ ROGUE MODE // 2024.09.26 @ 03:57:31 Player: feudal wulf Result: Self-destructed Performance ------------- Evolutions (1) 500 Regions Visited (2) 400 Robots Destroyed (18) 90 Value Destroyed (454) 454 Prototype IDs (2) 40 Alien Tech Used (0) 0 Bonus (0) 0 TOTAL SCORE: 1484 Bonus ------- None Cogmind --------- Core Integrity 262/400 Matter 275/300 Energy 90/100 System Corruption 3% Temperature Cool (17) Movement Flying (37) Location -9/Materials Parts ------- > --- POWER (1) -------- (None) > --- PROPULSION (4) --- Flight Unit Flight Unit > --- UTILITY (2) ------ Sensor Array Targeting Computer > --- WEAPON (2) ------- Grenade Launcher Mining Claw > --- INVENTORY (5) ---- Ion Engine Improved Medium Laser Improved Medium Laser Peak State ------------ > --- POWER ------------ Light Ion Engine > --- PROPULSION ------- Aluminum Leg Aluminum Leg Compact Wheel VTOL Module > --- UTILITY ---------- Large Storage Unit Targeting Computer > --- WEAPON ----------- Improved Medium Laser Advanced Beam Cannon > --- INVENTORY -------- Ion Engine Flight Unit Flight Unit Flight Unit Flight Unit Sensor Array Targeting Computer Hardened Light Armor Plating Improved Medium Laser Improved Medium Laser Grenade Launcher Mining Claw [Rating: 15] Favorites ----------- Power Light Ion Engine Engine Light Ion Engine Propulsion Compact Wheel Leg Aluminum Leg Wheel Compact Wheel Flight Unit Flight Unit Utility Targeting Computer Device Sensor Array Storage Small Storage Unit Processor Targeting Computer Weapon Assault Rifle Energy Gun Improved Medium Laser Energy Cannon Advanced Beam Cannon Ballistic Gun Assault Rifle Launcher Grenade Launcher Slashing Weapon Mining Claw Build | -11 -10 -9 ------- Run | Yrd Mat Mat Slots Evolved 2 | . . 2 Power . | . . . Propulsion 2 | . . 2 Utility . | . . . Weapon . | . . . Parts Attached 31 | 6 11 14 Power 3 | 1 2 . Engine 3 | 1 2 . Core . | . . . Reactor . | . . . Propulsion 13 | 2 4 7 Treads . | . . . Leg 4 | . 2 2 Wheel 4 | 2 2 . Hover . | . . . Flight 5 | . . 5 Utility 5 | 1 2 2 Device 1 | . . 1 Storage 2 | 1 1 . Processor 2 | . 1 1 Hackware . | . . . Protection . | . . . Artifact . | . . . Weapon 10 | 2 3 5 Energy Gun 1 | . . 1 Energy Cannon 1 | . . 1 Ballistic Gun 4 | 2 1 1 Ballistic Cannon . | . . . Launcher 3 | . 2 1 Special Weapon . | . . . Impact Weapon . | . . . Slashing Weapon 1 | . . 1 Piercing Weapon . | . . . Special Melee Weapon . | . . . Unidentified Prototypes 2 | . . 2 Parts Lost 8 | . 1 7 Power 2 | . 1 1 Propulsion 4 | . . 4 Utility 1 | . . 1 Weapon 1 | . . 1 Highest Loss Streak 5 | . 1 5 To Critical Strikes . | . . . Average Slot Usage (%) 95 | . 95 93 Engine 10 | . 10 11 Leg 7 | . 6 11 Wheel 19 | . 21 14 Flight 3 | . . 12 Storage 12 | . 14 7 Processor 12 | . 13 11 Energy Cannon 1 | . . 4 Ballistic Gun 18 | . 22 9 Launcher 4 | . 5 2 Peak Build Rating 15 | 6 8 15 Average Rating 7 | 4 6 10 On Entrance 4 | . 6 8 Naked Turns . | . . . Heaviest Build 30 | 12 28 30 Greatest Support 32 | 20 32 32 Greatest Overweight (x) 2 | . . 2 Average Overweight (x) . | . . . Largest Inventory Capacity 15 | 8 15 15 Average Capacity 10 | 6 9 12 Most Carried 13 | 5 10 13 Average Carried 7 | 2 7 8 Final Capacity 15 | 8 15 5 Final Carried 10 | 4 10 3 Class Distribution -------------------- 90% | Mutant 9% | Sprinter Dominant Class ---------------- Mutant | -10/Materials Mutant | -9/Materials Resources | -11 -10 -9 ----------- Run | Yrd Mat Mat Matter Collected 658 | 250 290 118 Remotely . | . . . Salvage Created 532 | . 345 187 Parts 45 | . 29 16 Haulers Intercepted . | . . . Recyclers Shooed 1 | . 1 . Parts Field Recycled . | . . . Retrieved Matter . | . . . Parts Self-Destructed . | . . . Prevented . | . . . Kills | -11 -10 -9 ------- Run | Yrd Mat Mat Combat Hostiles Destroyed 16 | . 10 6 Guns 10 | . 7 3 Cannons 3 | . . 3 AOE 3 | . 3 . Classes Destroyed 5 | . 4 1 Worker 1 | . 1 . Builder 1 | . 1 . Swarmer 6 | . 3 3 Grunt 8 | . 7 1 Sentry 2 | . . 2 Best Kill Streak 3 | . 3 3 Combat Bots Only 3 | . 2 3 Max Kills in Single Turn 3 | . 3 1 Gunslinging . | . . . Exploded 2 | . 2 . Melee . | . . . Uniques/NPCs Destroyed . | . . . Combat | -11 -10 -9 -------- Run | Yrd Mat Mat Hostile Shots Fired 89 | . 47 42 Missed 27 | . 17 10 Damage Taken 964 | . 364 600 Core 206 | . 68 138 Absorbed by Shields . | . . . Core Remaining (%) 86 | 100 72 . Volleys Fired 54 | . 34 20 Largest 2 | . 2 2 Hottest 124 | . 50 124 Shots Fired 89 | . 56 33 Gun 72 | . 54 18 Cannon 14 | . . 14 Launcher 3 | . 2 1 Special . | . . . Kinetic 67 | . 54 13 Thermal 19 | . . 19 Explosive 3 | . 2 1 Electromagnetic . | . . . Robot Hit Streak 9 | . 7 9 Robot Miss Streak 3 | . 3 2 Penetration Max . | . . . Secondary Targets . | . . . Shots Hit Robots 53 | . 34 19 Core Hits 27 | . 18 9 Critical Kills 1 | . 1 . Critical Parts Destroyed 2 | . 2 . Critical Strikes 3 | . 3 . Destroy 3 | . 3 . Melee Attacks 15 | . . 15 Impact . | . . . Slashing 15 | . . 15 Piercing . | . . . Sneak Attacks . | . . . Combat Hostiles . | . . . Follow-up Attacks . | . . . Damage Inflicted 1031 | . 705 326 Guns 540 | . 424 116 Cannons 206 | . . 206 Explosions 254 | . 250 4 Melee . | . . . Ramming 31 | . 31 . Kinetic 505 | . 424 81 Thermal 241 | . . 241 Explosive 254 | . 250 4 Electromagnetic . | . . . Impact . | . . . Slashing . | . . . Piercing . | . . . Highest Corruption 3 | . . 3 Average Corruption 3 | . . 3 Corruption Purged . | . . . Corruption Blocked . | . . . Overload Shots . | . . . Overflow Damage 8 | . 8 . Projectiles . | . . . Explosions 8 | . 8 . Melee . | . . . Knockbacks . | . . . Impact . | . . . Kinetic . | . . . Secondary . | . . . Self-Inflicted Damage 12 | . 12 . Shots . | . . . Rammed 3 | . 3 . Targets Rammed 5 | . 5 . Kicked 2 | . 2 . Crushed . | . . . Highest Temperature 298 | . 7 298 Average Temperature 114 | . 3 131 Received Heat Transfer 288 | . 150 138 Effects 2 | . . 2 Interference 2 | . . 2 Siege Activations . | . . . Robots Corrupted . | . . . Combat Hostiles . | . . . Parts Fried . | . . . Impact Corruptions . | . . . Robots Melted . | . . . Combat Hostiles . | . . . Parts Melted 1 | . . 1 Heat Transferred 444 | . . 444 Parts Sabotaged . | . . . Parts Stolen . | . . . Parts Stripped . | . . . Power Chain Reactions . | . . . Alert | -11 -10 -9 ------- Run | Yrd Mat Mat Peak Influence 227 | . 146 227 Initial 12 | . . 12 Average 45 | . 30 87 Maximum Alert Level 1 | . . 1 Low Security (%) 97 | 100 100 90 Level 1 2 | . . 9 Level 2 . | . . . Level 3 . | . . . Level 4 . | . . . Level 5 . | . . . High Security . | . . . Max Security . | . . . Squads Dispatched 3 | . 2 1 Investigation . | . . . Extermination . | . . . Reinforcement 3 | . 2 1 Assault . | . . . Garrison . | . . . Intercept . | . . . Searches Triggered . | . . . Construction Impeded . | . . . Haulers Reinforced . | . . . Active Scanning Responses . | . . . Cargo Convoy Interrupts . | . . . Stealth | -11 -10 -9 --------- Run | Yrd Mat Mat Distress Signals . | . . . Communications Jammed . | . . . Distress Signals . | . . . Times Spotted 37 | . 25 12 Peak Tracking Total 4 | . 4 3 Tactical Retreats 4 | . 1 3 Traps | -11 -10 -9 ------- Run | Yrd Mat Mat Traps Triggered 2 | . 2 . Indirectly . | . . . Trap Hack Attempts . | . . . Triggered . | . . . Disarmed . | . . . Reprogrammed . | . . . Reused . | . . . Traps Extracted . | . . . Installed . | . . . Triggered . | . . . Machines | -11 -10 -9 ---------- Run | Yrd Mat Mat Machines Disabled . | . . . Max in Single Turn . | . . . Machines Repaired . | . . . Machines Dismantled . | . . . Machines Sabotaged . | . . . Overloaded Fab Kills . | . . . Hacking | -11 -10 -9 --------- Run | Yrd Mat Mat Machines Accessed 6 | . 5 1 Terminals 4 | . 3 1 Fabricators . | . . . Repair Stations . | . . . Recycling Units 2 | . 2 . Scanalyzers . | . . . Garrison Access . | . . . Total Hacks 13 | . 9 4 Successful 8 | . 5 3 Failed 5 | . 4 1 Catastrophic . | . . . Database Lockouts . | . . . Manual . | . . . Terminals 9 | . 5 4 Fabricators . | . . . Repair Stations . | . . . Recycling Units 4 | . 4 . Scanalyzers . | . . . Garrison Access . | . . . Terminal Hacks 7 | . 4 3 Alert Level 2 | . 1 1 Unreport Threat 3 | . 1 2 Zone Layout 2 | . 2 . Fabricator Hacks . | . . . Repair Station Hacks . | . . . Recycling Unit Hacks 1 | . 1 . Retrieve Matter 1 | . 1 . Scanalyzer . | . . . Garrison Access Hacks . | . . . Unauthorized Hacks . | . . . Terminals . | . . . Fabricators . | . . . Repair Stations . | . . . Recycling Units . | . . . Scanalyzers . | . . . Garrison Access . | . . . Data Cores Recovered . | . . . Used . | . . . Hacking Detections 3 | . 3 . Full Trace Events . | . . . Feedback Events . | . . . Feedback Blocked . | . . . Robot Schematics Acquired . | . . . Robots Built . | . . . Authchips . | . . . Time . | . . . Total Robot Build Rating . | . . . Part Schematics Acquired . | . . . Parts Built . | . . . Authchips . | . . . Time . | . . . Total Part Build Rating . | . . . Parts Repaired . | . . . Time . | . . . Parts Recycled . | . . . Recycled Matter . | . . . Retrieved Matter . | . . . Retrieved Components . | . . . Parts Scanalyzed . | . . . Part Schematics Acquired . | . . . Parts Damaged . | . . . Bothacking | -11 -10 -9 ------------ Run | Yrd Mat Mat Used RIF Installer . | . . . Robots Hacked . | . . . Non-combat . | . . . Combat . | . . . Robot Hacks Applied . | . . . Relay Couplers Released . | . . . Fabnet Peak Effective % . | . . . Robots Rewired . | . . . Allies Hacked . | . . . Hacks Repelled . | . . . Allies | -11 -10 -9 -------- Run | Yrd Mat Mat Total Allies . | . . . Largest Group . | . . . Highest-Rated Group . | . . . Highest-Rated Ally . | . . . Total Orders . | . . . Ally Attacks . | . . . Total Damage . | . . . Kills . | . . . Allies Corrupted . | . . . Allies Melted . | . . . Intel | -11 -10 -9 ------- Run | Yrd Mat Mat Robot Analysis Total . | . . . Derelict Logs Recovered . | . . . Drone Launches . | . . . Drone Recoveries . | . . . Exploration | -11 -10 -9 ------------- Run | Yrd Mat Mat Turns Passed 1297 | 46 886 365 Spaces Moved 1091 | 42 725 324 Core 3 | 3 . . Treads . | . . . Legs 141 | . 134 7 Wheels 804 | 39 591 174 Hover . | . . . Flight 143 | . . 143 Fastest Speed 29 | 50 80 29 Average Speed 88 | 77 96 72 Slowest Speed 260 | 80 120 260 Overloaded Moves . | . . . Propulsion Burnouts . | . . . Robots Hopped . | . . . Cave-ins Triggered 1 | . . 1 Exploration Rate (%) 43 | 4 95 32 Regions Visited 2 Branch Regions . Pre-discovered Areas . | . . . Known Exits Taken . | . . . Unknown Exits Taken 2 | 1 1 . Scrap Searched . | . . . Spaces Dug 15 | . . 15 Terrain Destroyed 30 | . 9 21 Melee 15 | . . 15 Projectile . | . . . AOE 15 | . 9 6 Terrain Rammed . | . . . Walls Destroyed . | . . . Machines Disabled . | . . . Actions | -11 -10 -9 --------- Run | Yrd Mat Mat Total 1299 | 52 852 395 Wait 76 | . 70 6 Move 1088 | 41 724 323 Hop . | . . . Pick Up 19 | 5 7 7 Fast Attach 9 | 5 3 1 Attach 11 | 1 1 9 Detach . | . . . Swap 11 | . 7 4 Drop 10 | . 1 9 Fire 54 | . 34 20 Melee 15 | . . 15 Ram 3 | . 3 . Kick 2 | . 2 . Crush . | . . . Escape Stasis 1 | . . 1 Rewire . | . . . Trap . | . . . Miscellaneous . | . . . Route ------- -11/Scrapyard -10/Materials (discovered 5 exits: *Mat x3 / [*Min x2]) -9/Materials (discovered 1 exit: [*Mat]) History --------- Turn | Location | Event 20 | -11/Scrapyard | Discovered new exit (range 15) 47 | -11/Scrapyard | Entered Materials 123 | -10/Materials | Discovered new exit (range 15) 203 | -10/Materials | Discovered new exit (range 8) 269 | -10/Materials | Discovered new exit (range 14) 314 | -10/Materials | Build established: Mutant 388 | -10/Materials | Discovered new exit (range 15) 477 | -10/Materials | Discovered new exit (range 9) 933 | -10/Materials | Entered another Materials area 933 | -9/Materials | Evolved 2 slots: Propulsion x2 1270 | -9/Materials | Crushed by falling debris 1270 | -9/Materials | Discovered new exit (range 6) 1298 | -9/Materials | Self-destructed Last Messages --------------- Dropped Adv. Beam Cannon. Dropped Sensor Array. Dropped Lrg. Storage Unit. Acquired Sensor Array. Acquired 20 matter. Acquired 30 matter. The unstable cave ceiling collapses. [Achievement: Part-time Excavator] The unstable cave ceiling collapses. Crushed by falling debris. Targeting Computer destroyed. System corrupted by crushing effect (+2). Flight Unit destroyed. System corrupted by crushing effect (+1). EXIT=FOUND K-01 Serf collects debris. Critical hit (Burn: +37). Lgt. Ion Engine destroyed. Flight Unit destroyed. VTOL Module destroyed. Map ----- +----------------------------------------------------+ | ?????????????????????????????????????????????????? | | ?????????????????????????????????????????????????? | | ?????????????????????????????????????????????????? | | ?????????????????????????????????????????????????? | | ?????????????????????????????????????????????????? | | ?????????????????????????????????????????????????? | | ?????????????????????????????????????????????????? | | ?????????????????????????????????????????????????? | | ?????????????????????????????????????????????????? | | ?????????????????????????????????????????????????? | | ????????????????????????? ?????????????????????# | | ????????????????????????? #???????????????????# | | ????????????????????????? ????????????????????# | | ????????????????????????? Y ????????????????????# | | ????????????????????????? ????????????????????# | | ????????????????????????? ????????????????????# | | ????????????????????????? #????????????????????# | | ????????????????????????# #????????????????????# | | ????????????????????????# t#????????????????????# | | ????????????????????????# #????????????????????# | | ????????????????????????# #????????????????????# | | ????????????????????????# #????????????????????? | | ????????????????????##### #????????????????????? | | ????????????????????# # #????????????????????? | | ????????????????????# # #????????????????????? | | ????????????????????# #@ #????????????????????? | | ?????????????######## # #????????????????????? | | ?????????????# ## # #????????????????????? | | ?????????????# ## # #????????????????????? | | ?????????????# ## # #????????????????????? | | ?????????????# ###?## #?????????????????#### | | ?????????????# # #?????????????????# | | ?????????????# + #?????????????????# "" | | ?????????????# # #???" ????????????# "" | | ?????????????# ###### #?? ?????????????# "" | | ?????????????# #????# #? ??????????????# | | ?????????????# !#????#Y # ???????????????# "" | | ?????????????# #????# # ????????????????# "" | | ?????????????# #????# +?????????????????# "" | | ?????????????#######????# ########??????????# | | ????????????????????????# ## #??????????# | | ????????????????????????# #??????????# "T | | ???????????????????????## ############ "" | | ??????????????????????##" " # ## " | | ??????????????????????# ###### #############" | | ?????????????????????##"####### ##???????????#"R | | ?????????????????????# # #????????????#"" | | ?????????????????????# """ + #????????????### | | ?????????????????????# """ # < #??????????????? | | ?????????????????????# """ # #??????????????? | +----------------------------------------------------+ Best States ------------- Heat Dissipation 28 Energy Generation 10 Energy Capacity 125 Matter Stores 300 Matter Capacity 300 Sight Range 16 Robot Scan Range 14 Terrain Scan Density 10 Evasion (%) 64 Targeting Accuracy 5 Item Schematics ----------------- None Robot Schematics ------------------ None Fabricated ------------ Nothing Alien Tech Used ----------------- None Achievements -------------- Part-time Excavator Challenges ------------ None Game ------ Seed ElectrostormPlasmaRigger Manual? 0 Play Time 00:17:14 Cumulative 21.4 hours Start 2024.09.26 @ 03:28:52 End 2024.09.26 @ 03:57:31 Sessions 1 Manual Loads 0 Difficulty Rogue Special Mode None Game No. 25 Rogue 25 Adventurer 0 Explorer 0 Win Type - Total 0 Types 0/0/0/0/0/0/0/0/0 Lore% 7 Gallery% 20 Achievement% 19 Wizard Run 0 Options --------- Layout 2 ASCII 0 Keyboard 0 Movement Numpad Keybinds 0 Fullscreen 2 Font 48/Smallcaps Map View 50x44 Zoom Use 0% Tactical HUD 0 Map Filters NONE Filters NONE Steam 1 RUN: aed0a509-4ff0-48e7-8fd4-338cd2880a01